[Event "Romanian Superleague 2022"]
[Site "Oradea"]
[Date "2022.09.22"]
[Round "2.23"]
[White "Nastore, Pavel-Alexandru"]
[Black "Anton, Teodor"]
[Result "0-1"]
[ECO "B96"]
[WhiteElo "2279"]
[BlackElo "2454"]
[Annotator "TA"]
[PlyCount "68"]
[EventDate "2022.09.21"]
[EventType "team-tourn"]
[EventCountry "ROU"]
[SourceTitle "playchess.com"]
[Source "ChessBase"]
[SourceQuality "1"]
[TimeControl "40/5400+30:1800+30"]

{[%evp 17,68,28,35,34,33,32,28,0,14,-29,-22,-33,-14,-143,-139,-143,-72,-77,-78,-266,-267,-253,-252,-293,-263,-302,-265,-433,-433,-418,-422,-661,-653,-865,-423,-732,-732,-732,-721,-781,-759,-935,-888,-1189,-1114,-1202,-1828,-1854,-1810,-1296,-1227,-1179,-1148]} 1. e4 {[%emt 0:00:09]} c5 {[%emt 0:00:11]} 2. Nf3 {[%emt 0:00:06]} d6 {[%emt 0:00:06]} 3. d4 {[%emt 0:00:03]} cxd4 {[%emt 0:00:06]} 4. Nxd4 {[%emt 0:00:03]} Nf6 {[%emt 0:00:08]} 5. Nc3 {[%emt 0:00:03]} a6 {[%emt 0:00:23]} 6. Bg5 {[%emt 0:00:04]} Nbd7 {[%emt 0:00:18]} 7. Qe2 {[%emt 0:00:10]} Qc7 {[%emt 0:00:08]} 8. f4 {[%emt 0:02:35]} e6 {[%emt 0:00:16]} 9. O-O-O {[%emt 0:00:08]} b5 {[%emt 0:00:04]} 10. a3 {[%emt 0:17:52] B96: Sicilian Najdorf: 6 Bg5 e6 7 f4, lines other than 7...Qb6 and 7...Be7.} Be7 {[%emt 0:00:13]} 11. g4 {[%emt 0:04:51]} Rb8 {[%emt 0:00:21] 11...h6 gains popularity.} 12. Bh4 {[%emt 0:06:08] Threatens to win with g5. White has an edge.} h6 {[%emt 0:00:15]} (12... Nxe4 $5 13. Qxe4 Bxh4 $11) 13. Bg3 {[%emt 0:00:23] And now e5 would win.} b4 $1 {[%emt 0:01:02]} 14. axb4 {[%emt 0:01:09]} Rxb4 {[%emt 0:00:04] With the idea ...Bb7.} 15. e5 {[%emt 0:03:35] [#]} (15. Bg2 $11 {remains equal.}) 15... Bb7 $146 {[%emt 0:00:35]} (15... dxe5 16. fxe5 Nh7 17. Na2 $15) ({Predecessor:} 15... dxe5 16. fxe5 Nh5 17. gxh5 Bg5+ 18. Kb1 Qxc3 19. Nb3 Qc7 20. h4 Bf4 21. Qe1 Ra4 22. Bxf4 Rxf4 {0-1 (31) Frolyanov,D (2556)-Dominguez Perez,L (2758) Moscow 2019}) 16. Bg2 {[%emt 0:26:08] [#]} dxe5 {[%emt 0:18:05]} ({Better is} 16... Bxg2 $1 17. Qxg2 dxe5) 17. fxe5 {[%emt 0:01:09]} Nxg4 {[%emt 0:04:23]} 18. Bxb7 {[%emt 0:15:27] Loses the game.} (18. Qxg4 $17 {only move.} Bxg2 19. Rhg1) 18... Bg5+ $19 {[%emt 0:06:43]} 19. Kb1 {[%emt 0:00:08]} Qxb7 {[%emt 0:02:04]} ({Weaker is} 19... Qxc3 20. Nb3 Qc7 21. h4 Qxb7 22. hxg5 $11) 20. Nb3 {[%emt 0:02:00]} ({Don't go for} 20. Qxg4 $2 Rxb2+ 21. Ka1 Qb4 $19) 20... Ne3 {[%emt 0:01:45][%cal Od7c5] Hoping for ...Nc5!} 21. Rde1 {[%emt 0:03:08]} Nc5 {[%emt 0:05:02]} 22. h4 $2 {[%emt 0:02:48]} (22. Nxc5 {gets mated.} Rxb2+ 23. Ka1 Qb4) (22. Bf2 Nxb3 23. cxb3) 22... Nxb3 {[%emt 0:00:32]} 23. cxb3 {[%emt 0:02:24]} Rxb3 {[%emt 0:00:18]} 24. hxg5 {[%emt 0:09:15]} (24. Ka1 $142 Nf5 25. hxg5 Nxg3 26. Ne4 Nxe4 27. Qxe4) 24... Rxc3 {[%emt 0:00:08]} 25. Rc1 {[%emt 0:00:11] Prevents Rc2.} Nd5 {[%emt 0:09:00]} (25... Ra3 $142 26. Rhe1 Qe4+ 27. Rc2 Qxc2+ 28. Qxc2 Ra1+ 29. Kxa1 Nxc2+ 30. Ka2 Nxe1 31. gxh6 Nd3 32. hxg7 Rg8) 26. Qe1 {[%emt 0:02:24]} (26. Bf2 $142) 26... Rxc1+ {[%emt 0:01:54]} 27. Qxc1 {[%emt 0:00:58] [#]} Nc3+ $1 {[%emt 0:00:20][%mdl 512]} 28. Qxc3 {[%emt 0:00:34]} (28. Ka1 Ne2) 28... Qxh1+ {[%emt 0:00:06][%mdl 4096] Endgame KQR-KQB} 29. Ka2 {[%emt 0:00:03]} Qd5+ {[%emt 0:00:09]} 30. Ka3 {[%emt 0:00:28]} hxg5 {[%emt 0:00:15] Strongly threatening ...Rh3.} 31. Qc8+ {[%emt 0:00:32]} Qd8 {[%emt 0:00:05]} 32. Qc6+ {[%emt 0:00:08]} Kf8 {[%emt 0:00:17] White must now prevent ...Rh3.} 33. Be1 {[%emt 0:01:07]} Rh3+ {[%emt 0:01:28]} 34. b3 {[%emt 0:00:02]} Kg8 {[%emt 0:00:50] Weighted Error Value: White=1.02/Black=0.24 (precise)} 0-1

[Event "Romanian Superleague 2022"]
[Site "Oradea"]
[Date "2022.09.22"]
[Round "2.24"]
[White "Antal, Hunor-Zoltan"]
[Black "Carmaciu, Lucian-Catalin"]
[Result "1-0"]
[ECO "B27"]
[WhiteElo "2235"]
[BlackElo "2376"]
[Annotator "TA"]
[PlyCount "63"]
[EventDate "2022.09.21"]
[EventType "team-tourn"]
[EventCountry "ROU"]
[SourceTitle "playchess.com"]
[Source "ChessBase"]
[SourceQuality "1"]
[TimeControl "40/5400+30:1800+30"]

{[%evp 9,63,45,36,48,111,29,25,28,68,-2,23,-4,45,12,27,33,40,7,0,0,22,6,12,10,18,8,24,21,24,3,13,7,0,6,6,6,6,6,6,7,5,5,15,10,35,-68,-60,-70,-42,-39,54,58,60,51,758,785]} 1. e4 {[%emt 0:00:15]} c5 {[%emt 0:00:10]} 2. Nf3 {[%emt 0:00:06]} g6 {[%emt 0:00:20]} 3. d4 {[%emt 0:00:08]} Bg7 {[%emt 0:00:10]} 4. dxc5 {[%emt 0:00:37]} Qa5+ {[%emt 0:00:36]} 5. c3 {[%emt 0:00:27]} Qxc5 {[%emt 0:00:10]} 6. Na3 {[%emt 0:01:01] B27: Sicilian: 2 Nf3, unusual Black 2nd moves.} Qa5 {[%emt 0:23:33]} (6... d6 $14) 7. Be3 {[%emt 0:15:04]} (7. Qb3 $16) 7... Nc6 $11 {[%emt 0:01:45][%cal Og7c3]} 8. Nc4 {[%emt 0:22:09] White has an edge.} Qc7 {[%emt 0:01:03] [#]} 9. Qd2 $146 {[%emt 0:01:51] White is much more active.} (9. Nd4 $1 $14) ({Predecessor:} 9. a4 Nf6 10. e5 Ng4 11. Bd4 O-O 12. Qe2 f6 13. exf6 Nxd4 14. Nxd4 Nxf6 15. Nb5 {0-1 (42) Stiri,A (2198)-Romanishin,O (2515) Kerkyra 2009}) 9... d6 {[%emt 0:03:28]} 10. Bf4 {[%emt 0:05:17]} Bg4 {[%emt 0:12:46]} (10... Nf6 $11) 11. Be2 {[%emt 0:02:47]} Rd8 {[%emt 0:08:34]} 12. Ne3 {[%emt 0:02:42]} Nf6 {[%emt 0:01:48]} 13. Nd5 {[%emt 0:07:16]} Nxd5 {[%emt 0:00:51]} 14. exd5 {[%emt 0:00:15]} Bxf3 {[%emt 0:00:18]} 15. Bxf3 {[%emt 0:00:02]} Ne5 {[%emt 0:00:27][%cal Bc6e5,Be5c4,Bc4b6,Bb6c4,Bc4b2][%mdl 32]} 16. Be2 {[%emt 0:02:43]} O-O {[%emt 0:07:26]} 17. O-O {[%emt 0:01:13]} Rb8 {[%emt 0:01:03]} 18. a4 {[%emt 0:09:19]} a6 {[%emt 0:09:54]} 19. a5 {[%emt 0:05:58]} Nc4 {[%emt 0:07:02]} 20. Qc2 {[%emt 0:01:34]} Rfc8 {[%emt 0:02:48]} 21. Ra4 {[%emt 0:02:01]} b5 {[%emt 0:05:09]} 22. axb6 {[%emt 0:04:31]} Nxb6 {[%emt 0:00:08]} 23. Ra5 {[%emt 0:03:51]} Nc4 {[%emt 0:00:34]} 24. Ra2 {[%emt 0:03:51]} Qb7 {[%emt 0:01:46][%csl LRb2,LRd5]} 25. Qe4 $36 {[%emt 0:00:58][%mdl 2048] White fights for an advantage.} Qb3 {[%emt 0:01:46]} 26. Rxa6 {[%emt 0:01:36]} Nxb2 {[%emt 0:00:15]} 27. Ra7 {[%emt 0:02:09]} ({White should play} 27. Qxe7 $14 Qxd5 28. Qxd6 (28. Rxd6 Qf5 $14) (28. Bxd6 Re8 $11) 28... Qxd6 29. Rxd6 (29. Bxd6 Rb3 $14)) 27... Bf6 $15 {[%emt 0:02:07]} 28. g4 {[%emt 0:03:11][%cal Bg2g4,Bg4g5][%mdl 32]} Qxc3 {[%emt 0:04:58]} (28... g5 $5 {[%cal Rg5f4]} 29. Be3 Rxc3 $17) 29. Rc1 {[%emt 0:00:37]} Qb3 {[%emt 0:01:14]} (29... Qh3 $15) 30. Rxc8+ $1 $14 {[%emt 0:00:30]} Rxc8 {[%emt 0:00:03]} 31. g5 {[%emt 0:00:20]} Qb6 $2 {[%emt 0:00:40][%mdl 8192] [#]} (31... Bg7 $14) 32. Be3 {[%emt 0:00:12] Weighted Error Value: White=0.22 (precise) /Black=0.21 (precise)} 1-0

[Event "Romanian Superleague 2022"]
[Site "Oradea"]
[Date "2022.09.22"]
[Round "2.25"]
[White "Dobre, Claudiu-Cristian"]
[Black "Berkes, Ferenc"]
[Result "1/2-1/2"]
[ECO "A28"]
[WhiteElo "2268"]
[BlackElo "2651"]
[Annotator "TA"]
[PlyCount "120"]
[EventDate "2022.09.21"]
[EventType "team-tourn"]
[EventCountry "ROU"]
[SourceTitle "playchess.com"]
[Source "ChessBase"]
[SourceQuality "1"]
[TimeControl "40/5400+30:1800+30"]

{[%evp 9,120,31,57,45,45,29,53,14,21,24,8,0,0,-1,14,10,10,22,22,22,21,14,14,4,4,0,0,-5,-8,-12,-8,-9,0,0,0,-19,-11,-10,-10,-14,-10,-10,-8,-26,0,0,0,0,0,0,0,0,0,0,0,0,0,0,0,0,0,0,0,-1,0,0,0,0,0,0,0,0,0,0,0,0,0,0,0,0,0,0,0,0,0,0,0,0,0,0,0,0,0,0,0,0,0,0,0,0,0,0,0,0,0,0,0,0,0,0,0,0,0]} 1. c4 {[%emt 0:00:03]} e5 {[%emt 0:00:05]} 2. Nc3 {[%emt 0:00:05]} Nf6 {[%emt 0:00:06]} 3. Nf3 {[%emt 0:00:03]} Nc6 {[%emt 0:00:08]} 4. e3 {[%emt 0:00:04]} d6 {[%emt 0:00:08]} 5. d4 {[%emt 0:00:24]} Bd7 {[%emt 0:00:05]} 6. Be2 {[%emt 0:05:31] A28: English Opening: Four Knights Variation.} g6 {[%emt 0:00:09]} 7. b3 {[%emt 0:12:26]} exd4 {[%emt 0:05:53]} 8. Nxd4 {[%emt 0:01:54] White is slightly better.} Bg7 {[%emt 0:00:49]} 9. Bb2 {[%emt 0:01:11]} O-O {[%emt 0:00:07]} 10. Bf3 {[%emt 0:05:44] [#]} Ne5 $146 {[%emt 0:03:41]} ({Predecessor:} 10... Re8 11. O-O Ne5 12. Bxb7 Rb8 13. Bf3 Nxc4 14. bxc4 Rxb2 15. Nb3 Bf5 16. Nd4 Bd7 {1-0 (44) Ljubisavljevic,Z (2290)-Granaldi,A (1995) Campobasso 2006}) 11. Be2 {[%emt 0:02:48]} Re8 {[%emt 0:09:29]} 12. O-O {[%emt 0:01:03]} a6 {[%emt 0:00:07]} 13. Qd2 {[%emt 0:04:28]} c5 {[%emt 0:26:58]} 14. Nf3 {[%emt 0:08:59]} (14. Nc2 {is more complex.} Bc6 15. Rad1 b5 16. Qxd6 Qb6 17. cxb5 axb5 18. Nxb5 Re6 19. Qc7) 14... Bc6 {[%emt 0:00:07]} 15. Nxe5 {[%emt 0:02:33]} dxe5 {[%emt 0:00:07]} 16. Qxd8 {[%emt 0:02:17]} Raxd8 {[%emt 0:06:21]} 17. Rfd1 {[%emt 0:00:38]} e4 {[%emt 0:00:54]} 18. Rxd8 {[%emt 0:01:43]} Rxd8 {[%emt 0:00:06]} 19. Rd1 {[%emt 0:00:04] Prevents Rd2.} Rxd1+ {[%emt 0:00:15]} 20. Nxd1 {[%emt 0:02:32]} Nd7 {[%emt 0:01:00]} 21. Bxg7 {[%emt 0:09:17]} Kxg7 $11 {[%emt 0:00:07][%mdl 4096] Endgame KBN-KBN} 22. Nc3 {[%emt 0:02:50]} Ne5 {[%emt 0:01:37]} 23. h4 {[%emt 0:16:54]} f5 {[%emt 0:00:59]} 24. Kh2 {[%emt 0:03:21]} Kf6 {[%emt 0:01:38]} 25. Kg3 {[%emt 0:01:21]} h6 {[%emt 0:05:16]} 26. f4 {[%emt 0:03:40]} exf3 {[%emt 0:01:25]} 27. gxf3 {[%emt 0:00:09] The position is equal.} Nf7 {[%emt 0:10:49]} 28. f4 {[%emt 0:03:56]} Nd6 {[%emt 0:00:15]} 29. Bf3 {[%emt 0:05:08]} Bxf3 {[%emt 0:02:39]} 30. Kxf3 {[%emt 0:00:05] KN-KN} Ke6 {[%emt 0:00:06]} 31. a4 {[%emt 0:03:29]} Nf7 {[%emt 0:09:33]} 32. Ke2 {[%emt 0:00:49]} Nd8 {[%emt 0:00:20]} 33. Kd3 {[%emt 0:00:50]} Nc6 {[%emt 0:00:06]} 34. Kd2 {[%emt 0:00:29]} Nb4 {[%emt 0:03:25]} 35. Ne2 {[%emt 0:00:33]} Kf6 {[%emt 0:03:11]} 36. Ng1 {[%emt 0:00:26]} g5 {[%emt 0:01:14]} 37. hxg5+ {[%emt 0:00:05]} hxg5 {[%emt 0:00:03]} 38. fxg5+ {[%emt 0:00:04]} Kxg5 {[%emt 0:00:06]} 39. Nf3+ {[%emt 0:01:04]} Kf6 {[%emt 0:00:08]} 40. Ke2 {[%emt 0:00:00]} Nc6 {[%emt 0:10:58]} 41. Kf2 b6 42. Kg3 Nb4 43. Kf2 Na2 44. Nd2 Ke5 45. Kg3 Nc1 46. Kf3 a5 47. Kf2 Na2 48. Kg3 Nb4 49. Kf3 Nc2 50. Ke2 f4 {[%emt 0:00:00]} 51. exf4+ Kxf4 {[%emt 0:00:00]} 52. Kd3 Nd4 {[%emt 0:00:00]} 53. Ne4 Nxb3 {[%emt 0:00:00] [#] ( -> ...Nc1+)} 54. Nc3 Ke5 {[%emt 0:00:00]} 55. Nd5 Nc1+ {[%emt 0:00:00]} 56. Kd2 Na2 {[%emt 0:00:00] ...Kd4 is the strong threat.} 57. Ke3 Nb4 {[%emt 0:00:00]} 58. Nxb6 Kd6 {[%emt 0:00:18]} 59. Ke4 Kc6 {[%emt 0:00:30]} 60. Nc8 Kd7 {[%emt 0:00:30] Weighted Error Value: White=0.04 (flawless) /Black=0.03 (flawless)} 1/2-1/2

[Event "Romanian Superleague 2022"]
[Site "Oradea"]
[Date "2022.09.22"]
[Round "2.26"]
[White "Jianu, Vlad-Cristian"]
[Black "Padurariu, Mihai-Edward"]
[Result "1-0"]
[ECO "A46"]
[WhiteElo "2511"]
[BlackElo "2263"]
[Annotator "TA"]
[PlyCount "85"]
[EventDate "2022.09.21"]
[EventType "team-tourn"]
[EventCountry "ROU"]
[SourceTitle "playchess.com"]
[Source "ChessBase"]
[SourceQuality "1"]
[TimeControl "40/5400+30:1800+30"]

{[%evp 14,85,17,0,8,0,0,0,0,0,0,0,0,0,0,0,0,0,0,-14,0,0,0,0,0,0,0,0,0,0,49,58,54,58,57,33,33,0,60,59,67,74,80,78,80,84,85,82,83,81,85,86,134,124,190,167,142,125,196,196,723,712,687,661,637,620,966,962,1505,1506,1467,1411,1362,672]} 1. d4 {[%emt 0:00:03]} Nf6 {[%emt 0:00:10]} 2. Nf3 {[%emt 0:00:06]} e6 {[%emt 0:00:16]} 3. g3 {[%emt 0:00:06]} b5 {[%emt 0:00:36]} 4. Bg2 {[%emt 0:00:10]} d5 {[%emt 0:00:30]} 5. O-O {[%emt 0:00:09]} Be7 {[%emt 0:00:35]} 6. a4 {[%emt 0:00:11]} b4 {[%emt 0:00:25]} 7. c4 {[%emt 0:00:07]} bxc3 {[%emt 0:00:37]} 8. Nxc3 $1 {[%emt 0:00:07] 8.Nxc3 is better than 8.bxc3.} O-O {[%emt 0:00:28] A46: 1 d4 Nf6 2 Nf3 e6: Torre, London and Colle Systems.} 9. Bf4 {[%emt 0:00:28]} a5 {[%emt 0:01:12]} 10. Rc1 {[%emt 0:04:09]} c6 {[%emt 0:01:28] The position is equal.} 11. Re1 {[%emt 0:00:43]} Ba6 {[%emt 0:02:12]} 12. e4 {[%emt 0:05:29] [#]} Bb4 $146 {[%emt 0:12:20]} ({Predecessor:} 12... Nbd7 13. h4 dxe4 14. Nxe4 Nd5 {1-0 (35) Soto Hernandez,H (2452)-Alvarez Pedraza,A (2503) Santa Maria del Mar 2017}) 13. exd5 {[%emt 0:13:33]} cxd5 {[%emt 0:08:03]} 14. Ne5 {[%emt 0:00:09]} Qb6 {[%emt 0:03:41]} 15. Re3 {[%emt 0:16:44]} Nbd7 {[%emt 0:17:14]} 16. Na2 {[%emt 0:09:49]} Rfc8 {[%emt 0:06:48] Against Nc6} 17. Nxb4 {[%emt 0:06:46]} axb4 {[%emt 0:00:36]} 18. Re1 {[%emt 0:09:43]} Rxc1 {[%emt 0:09:12]} 19. Qxc1 {[%emt 0:01:50]} Rc8 {[%emt 0:11:24] Prevents Qc6.} 20. Qd2 {[%emt 0:03:06]} b3 {[%emt 0:03:01]} 21. a5 {[%emt 0:02:30]} Qa7 {[%emt 0:03:14]} (21... Qb7 $11 {is superior.}) 22. Qb4 {[%emt 0:02:22] And now Qe7 would win.} Nxe5 {[%emt 0:04:25]} 23. Bxe5 {[%emt 0:00:15]} Bc4 {[%emt 0:03:18]} 24. Qb6 {[%emt 0:02:56]} Qa8 {[%emt 0:01:59]} 25. Qb4 {[%emt 0:04:50]} Nd7 {[%emt 0:01:12]} (25... Qa7 $11) 26. Bf4 $14 {[%emt 0:00:32]} Nb8 {[%emt 0:01:06]} 27. Bxb8 {[%emt 0:07:59] White has more active pieces.} Rxb8 {[%emt 0:03:09]} 28. Qxc4 {[%emt 0:00:58]} dxc4 {[%emt 0:00:01]} 29. Bxa8 {[%emt 0:00:08]} Rxa8 {[%emt 0:00:02][%mdl 4096] Endgame KR-KR} 30. Ra1 {[%emt 0:00:23]} Kf8 {[%emt 0:00:37]} 31. Kf1 {[%emt 0:00:34]} Ke7 {[%emt 0:00:37]} 32. Ke2 {[%emt 0:01:11] Hoping for Kd2.} Kd6 {[%emt 0:01:44] [#]} (32... c3 $142 33. bxc3 Kd7) 33. Kd2 $1 $16 {[%emt 0:00:59]} Kc6 {[%emt 0:01:03]} (33... Kd5 $16 {is a better defense.}) 34. a6 {[%emt 0:04:59]} Kb5 {[%emt 0:03:15]} 35. Kc3 {[%emt 0:00:47]} e5 {[%emt 0:00:31] [#]} (35... Ra7 $16) 36. d5 $1 $18 {[%emt 0:00:55] d6 is the strong threat.} ({Don't blunder} 36. dxe5 $2 Rd8 37. Ra5+ Kxa5 $19) 36... Ra7 $2 {[%emt 0:00:55]} (36... Kc5 37. d6 Kxd6) 37. d6 {[%emt 0:00:36] White is clearly winning.} Kc6 {[%emt 0:00:33]} 38. Kxc4 {[%emt 0:00:18]} Kxd6 {[%emt 0:00:06]} 39. Kb5 {[%emt 0:01:18] Threatens to win with Kb6.} Ra8 {[%emt 0:00:51]} 40. a7 {[%emt 0:00:00]} Kc7 {[%emt 0:00:00]} 41. Ka6 {[%emt 0:00:54]} Re8 42. Ra4 {[%emt 0:00:30]} Kd6 43. Kb7 {[%emt 0:00:30] Weighted Error Value: White=0.03 (flawless) /Black=0.16 (very precise)} (43. Rb4 $142) 1-0

[Event "Romanian Superleague 2022"]
[Site "Oradea"]
[Date "2022.09.22"]
[Round "2.27"]
[White "Voiteanu, Gabriel"]
[Black "Gavrilescu, David"]
[Result "0-1"]
[ECO "D02"]
[WhiteElo "2154"]
[BlackElo "2523"]
[Annotator "TA"]
[PlyCount "72"]
[EventDate "2022.09.21"]
[EventType "team-tourn"]
[EventCountry "ROU"]
[SourceTitle "playchess.com"]
[Source "ChessBase"]
[SourceQuality "1"]
[TimeControl "40/5400+30:1800+30"]

{[%evp 14,72,17,12,15,0,0,0,0,0,0,14,0,0,11,11,16,14,13,7,13,17,29,31,23,0,14,17,10,-24,-10,-13,-5,-24,0,0,0,-14,-10,-68,-82,-170,-172,-216,-235,-222,-198,-194,-223,-188,-116,-608,-452,-448,-389,-637,-636,-626,-615,-564,-564]} 1. Nf3 {[%emt 0:00:10]} d5 {[%emt 0:00:22]} 2. g3 {[%emt 0:00:20]} c5 {[%emt 0:00:41]} 3. Bg2 {[%emt 0:00:15]} Nf6 {[%emt 0:00:25]} 4. O-O {[%emt 0:00:25]} e6 {[%emt 0:00:10]} 5. d4 {[%emt 0:00:55]} cxd4 {[%emt 0:00:34]} 6. Nxd4 {[%emt 0:00:09]} e5 {[%emt 0:00:38]} 7. Nb3 {[%emt 0:03:17]} Be6 {[%emt 0:00:59]} 8. Nc3 {[%emt 0:06:02]} (8. e4 $5 {[%cal Re4d5]}) 8... Be7 {[%emt 0:00:27] D02: 1 d4 d5 2 Nf3 sidelines, including 2...Nf6 3 g3 and 2...Nf6 3 Bf4.} 9. Bg5 {[%emt 0:02:38]} Nbd7 {[%emt 0:00:36]} 10. e4 {[%emt 0:07:20]} dxe4 {[%emt 0:03:41] The position is equal.} (10... d4 {seems wilder.} 11. Nd5 h6 12. Bxf6 Nxf6 13. f4 Rc8) 11. Nxe4 {[%emt 0:07:20]} Nxe4 {[%emt 0:00:12]} 12. Bxe7 {[%emt 0:00:19]} Qxe7 {[%emt 0:00:06]} 13. Bxe4 {[%emt 0:00:15]} Nf6 {[%emt 0:00:05]} 14. Bg2 {[%emt 0:03:45]} O-O {[%emt 0:02:05]} 15. Qe2 {[%emt 0:05:42]} Qc7 {[%emt 0:07:30] Strongly threatening ...Bc4.} 16. Rfe1 {[%emt 0:02:38]} Nd7 {[%emt 0:01:57]} 17. Rad1 {[%emt 0:05:20]} a5 {[%emt 0:03:23][%cal Ba7a5,Ba5a4][%mdl 32]} 18. Bd5 {[%emt 0:06:19] [#]} Bf5 $146 {[%emt 0:10:19]} ({Predecessor:} 18... Bxd5 19. Rxd5 a4 20. Nc1 a3 21. b3 e4 22. c4 Rfe8 23. Rd4 Nf6 24. Red1 h5 {0-1 (69) Ginsburg,M (2315)-Liang,J (2399) Redmond 2021}) 19. Be4 {[%emt 0:13:35]} (19. Qf3 {looks sharper.} Bxc2 20. Rc1 Nf6 21. Bxb7 Rad8 22. Qc3) 19... Bxe4 {[%emt 0:03:46]} 20. Qxe4 {[%emt 0:00:05]} a4 {[%emt 0:00:17]} 21. Nc1 {[%emt 0:06:09][%cal Bb3c1,Bc1d3,Bd3b4][%mdl 32]} (21. Nd2 $5 {[%cal Rd2c4]}) 21... Rfe8 {[%emt 0:05:47]} 22. Nd3 {[%emt 0:05:46]} Nf6 {[%emt 0:02:22]} 23. Qe2 {[%emt 0:01:47][%cal Rd3e5]} Ra5 {[%emt 0:00:28][%cal Ba8a5,Ba5c5,Bc5c4,Bc4g4][%mdl 32]} 24. Nb4 {[%emt 0:03:39]} Rc5 {[%emt 0:14:00]} 25. Rd2 {[%emt 0:09:44]} h5 {[%emt 0:03:11]} 26. h4 {[%emt 0:03:24]} (26. Qd1 $11) 26... e4 {[%emt 0:00:38][%cal Oe4e3] And now ...e3! would win.} 27. Qe3 {[%emt 0:01:49] [#]} (27. Rd4 $17 {might work better.}) 27... Qc8 $1 $19 {[%emt 0:08:52]} 28. Kg2 {[%emt 0:02:32]} Ng4 {[%emt 0:00:35]} 29. Qd4 {[%emt 0:02:16]} Rc4 {[%emt 0:00:25]} ({Inferior is} 29... Qf5 30. Nd5 Qf3+ 31. Kg1 $17) 30. Qd6 {[%emt 0:00:20]} e3 {[%emt 0:01:34]} ({Not} 30... Qf5 31. Nd5 $17) 31. fxe3 {[%emt 0:01:12]} Nxe3+ {[%emt 0:01:08]} ({Black should play} 31... Rxe3 $19 32. Qd8+ Qxd8 33. Rxd8+ Kh7 34. Rxe3 Nxe3+ 35. Kf3 Rxb4 36. Kxe3 Rxb2) 32. Kg1 $2 {[%emt 0:00:13][%mdl 8192] White does not recover from this.} (32. Rxe3 $17 Rxe3 33. Nd5) 32... Rg4 {[%emt 0:01:07]} 33. Rde2 {[%emt 0:00:42]} Re6 {[%emt 0:00:09]} 34. Rxe3 $2 {[%emt 0:00:07]} (34. Nd5 Nxd5 35. Qxd5 Rxg3+ 36. Kf2 Rf6+ 37. Kxg3 Qg4+ 38. Kh2 Qxh4+ 39. Kg2 Rg6+ 40. Kf1 Qh3+ 41. Qg2 (41. Rg2 $2 Qh1+ 42. Kf2 Rf6+ 43. Kg3 Qxe1+ 44. Kh2 Qh4+ 45. Kg1 Re6 $19) 41... Rxg2 42. Rxg2) 34... Rxd6 {[%emt 0:00:03] Black is clearly winning.} 35. Re8+ {[%emt 0:00:07] [#]} Qxe8 $3 {[%emt 0:00:04]} 36. Rxe8+ {[%emt 0:00:05]} Kh7 {[%emt 0:00:04] Weighted Error Value: White=0.40/Black=0.19 (very precise)} 0-1